fUST/lending_fUST_20241027
["ID","MTS","AMOUNT","RATE_DAILY","PERIOD"]
[340868838,1729963853573,-500.0,0.00038356,120]
[340868839,1729963853582,-1589.78,0.00038356,120]
[340868840,1729963853592,-500.0,0.00038356,120]
[340868841,1729963853601,-500.0,0.00038356,120]
[340868842,1729963853610,-500.0,0.00038356,120]
[340868843,1729963853620,-500.0,0.00038356,120]
[340868844,1729963853629,-500.0,0.00038356,120]
[340868845,1729963853638,-507.7777444,0.00038356,120]
[340868846,1729963853647,-861.76,0.00038356,120]
[340868847,1729963853657,-500.0,0.00038356,120]
[340868848,1729963853666,-793.48,0.00038356,120]
[340868849,1729963853676,-500.0,0.00038356,120]
[340868850,1729963853687,-500.0,0.00038356,120]
[340868851,1729963853697,-504.69620163,0.00038356,120]
[340868852,1729963853709,-500.0,0.00038356,120]
[340868853,1729963853720,-500.0,0.00038356,120]
[340868854,1729963853729,-1000.0,0.00038356,120]
[340868855,1729963853739,-1004.2,0.00038356,120]
[340868856,1729963853748,-500.0,0.00038356,120]
[340868857,1729963853758,-500.0,0.00038356,120]
[340868858,1729963853767,-1108.59,0.00038356,120]
[340868859,1729963853776,-500.0,0.00038356,120]
[340868860,1729963853785,-500.0,0.00038356,120]
[340868861,1729963853795,-306.18273523,0.00038356,120]
[340868862,1729963853805,-500.0,0.00038356,120]
[340868863,1729963853814,-500.0,0.00038356,120]
[340868864,1729963853824,-532.10513746,0.00038356,120]
[340868865,1729963853834,-500.0,0.00038356,120]
[340868866,1729963853844,-500.0,0.00038356,120]
[340868867,1729963853853,-510.87766434,0.00038356,120]
[340868868,1729963853863,-500.0,0.00038356,120]
[340868869,1729963853877,-500.0,0.00038356,120]
[340868870,1729963853888,-755.36,0.00038356,120]
[340868871,1729963853898,-500.0,0.00038356,120]
[340868872,1729963853908,-500.0,0.00038356,120]
[340868873,1729963853918,-500.0,0.00038356,120]
[340868874,1729963853928,-500.0,0.00038356,120]
[340868875,1729963853938,-502.55,0.00038356,120]
[340868876,1729963853959,-500.0,0.00038356,120]
[340868877,1729963853971,-500.0,0.00038356,120]
[340868878,1729963853983,-500.0,0.00038356,120]
[340868879,1729963853995,-516.99004459,0.00038356,120]
[340868880,1729963854006,-512.45253178,0.00038356,120]
[340868881,1729963854018,-2161.11,0.00038356,120]
[340868882,1729963854028,-500.0,0.00038356,10]
[340868883,1729963854040,-500.0,0.00038356,120]
[340868884,1729963854052,-500.0,0.00038356,120]
[340868885,1729963854062,-1866.69,0.00038356,120]
[340868886,1729963854072,-500.0,0.00038356,120]
[340868887,1729963854082,-877.85,0.00038356,120]
[340868888,1729963854092,-500.0,0.00038356,120]
[340868889,1729963854102,-513.45229483,0.00038356,120]
[340868890,1729963854114,-782.6,0.00038356,120]
[340868891,1729963854124,-500.0,0.00038356,120]
[340868892,1729963854135,-500.0,0.00038356,120]
[340868893,1729963854147,-500.0,0.00038356,120]
[340868894,1729963854158,-500.0,0.00038356,120]
[340868895,1729963854169,-500.0,0.00038356,120]
[340868896,1729963854181,-1353.4,0.00038356,120]
[340868897,1729963854192,-750.16,0.00038356,120]
[340868898,1729963854202,-1666.17,0.00038356,30]
[340868899,1729963854213,-500.0,0.00038356,120]
[340868900,1729963854225,-593.16,0.00038356,120]
[340868901,1729963854236,-508.55,0.00038356,120]
[340868902,1729963854249,-500.0,0.00038356,120]
[340868903,1729963854260,-972.18,0.00038356,120]
[340868904,1729963854270,-500.0,0.00038356,120]
[340868905,1729963854280,-500.0,0.00038356,120]
[340868906,1729963854291,-850.97,0.00038356,120]
[340868907,1729963854302,-500.0,0.00038356,120]
[340868908,1729963854314,-500.0,0.00038356,120]
[340868909,1729963854325,-936.86,0.00038356,120]
[340868910,1729963854336,-500.0,0.00038356,120]
[340868911,1729963854347,-954.94,0.00038356,120]
[340868912,1729963854357,-500.0,0.00038356,120]
[340868913,1729963854368,-500.0,0.00038356,120]
[340868914,1729963854380,-500.0,0.00038356,120]
[340868915,1729963854390,-500.0,0.00038356,120]
[340868916,1729963854399,-1059.09,0.00038356,120]
[340868917,1729963854409,-512.43036143,0.00038356,120]
[340868918,1729963854418,-1141.54,0.00038356,120]
[340868919,1729963854428,-500.0,0.00038356,120]
[340868920,1729963854437,-500.0,0.00038356,120]
[340868921,1729963854447,-500.0,0.00038356,120]
[340868922,1729963854457,-500.0,0.00038356,120]
[340868923,1729963854467,-1204.97,0.00038356,120]
[340868924,1729963854476,-500.0,0.00038356,120]
[340868925,1729963854486,-1050.85,0.00038356,120]
[340868926,1729963854495,-500.0,0.00038356,120]
[340868927,1729963854505,-500.0,0.00038356,120]
[340868928,1729963854514,-500.0,0.00038356,120]
[340868929,1729963854524,-500.0,0.00038356,120]
[340868930,1729963854534,-1311.96,0.00038356,120]
[340868931,1729963854544,-562.54,0.00038356,120]
[340868932,1729963854553,-500.0,0.00038356,120]
[340868933,1729963854563,-500.0,0.00038356,120]
[340868934,1729963854574,-500.0,0.00038356,120]
[340868935,1729963854583,-500.0,0.00038356,120]
[340868936,1729963854593,-500.0,0.00038356,120]
[340868937,1729963854602,-500.0,0.00038356,120]
[340868938,1729963854612,-500.0,0.00038356,120]
[340868939,1729963854621,-1542.69,0.00038356,120]
[340868940,1729963854631,-500.0,0.00038356,120]
[340868941,1729963854641,-500.0,0.00038356,120]
[340868942,1729963854650,-500.0,0.00038356,120]
[340868943,1729963854660,-500.0,0.00038356,120]
[340868944,1729963854669,-500.0,0.00038356,120]
[340868945,1729963854678,-500.0,0.00038356,120]
[340868946,1729963854688,-500.0,0.00038356,120]
[340868947,1729963854698,-500.0,0.00038356,120]
[340868948,1729963854707,-500.0,0.00038356,120]
[340868949,1729963854717,-374.35503782,0.00038356,7]
[340868950,1729963854729,-500.0,0.00038356,120]
[340868951,1729963854739,-777.79,0.00038356,120]
[340868952,1729963854749,-500.0,0.00038356,120]
[340868953,1729963854759,-500.0,0.00038356,120]
[340868954,1729963854771,-500.0,0.00038356,120]
[340868955,1729963854783,-500.0,0.00038356,120]
[340868956,1729963854792,-500.0,0.00038356,120]
[340868957,1729963854802,-500.0,0.00038356,120]
[340868958,1729963854811,-500.0,0.00038356,120]
[340868959,1729963854821,-500.0,0.00038356,120]
[340868960,1729963854830,-500.0,0.00038356,120]
[340868961,1729963854839,-500.0,0.00038356,120]
[340868962,1729963854849,-500.0,0.00038356,120]
[340868963,1729963854859,-661.3,0.00038356,120]
[340868964,1729963854869,-1303.4,0.00038356,120]
[340868965,1729963854883,-500.0,0.00038356,120]
[340868966,1729963854893,-874.79,0.00038356,120]
[340868967,1729963854903,-777.92,0.00038356,120]
[340868968,1729963854912,-500.0,0.00038356,120]
[340868969,1729963854923,-7678.78,0.00038356,21]
[340868970,1729963854932,-500.0,0.00038356,120]
[340868971,1729963854941,-665.4,0.00038356,120]
[340868972,1729963854952,-500.0,0.00038356,120]
[340868973,1729963854962,-500.0,0.00038356,120]
[340868974,1729963854973,-500.0,0.00038356,120]
[340868975,1729963854983,-229.49817278,0.00038356,120]
[340868976,1729963854992,-500.0,0.00038356,120]
[340868977,1729963855002,-500.0,0.00038356,120]
[340868978,1729963855011,-500.0,0.00038356,120]
[340868979,1729963855020,-155.23794676,0.00038356,120]
[340868980,1729963855030,-1904.67,0.00038356,120]
[340868981,1729963855040,-568.85183816,0.00038356,120]
[340868982,1729963855052,-500.0,0.00038356,120]
[340868983,1729963855063,-822.08,0.00038356,120]
[340868984,1729963855072,-500.0,0.00038356,120]
[340868985,1729963855082,-807.59,0.00038356,120]
[340868986,1729963855091,-2765.88,0.00038356,120]
[340868987,1729963855101,-500.0,0.00038356,120]
[340868988,1729963855111,-500.0,0.00038356,120]
[340868989,1729963855121,-500.0,0.00038356,120]
[340868990,1729963855131,-500.0,0.00038356,120]
[340868991,1729963855140,-502.60382753,0.00038356,120]
[340868992,1729963855149,-792.63026271,0.00038356,120]
[340868993,1729963855438,-9.61973729,0.00038356,120]
[340868994,1729963855450,-481.2216749,0.00038356,120]
[340868995,1729963855461,-314.12264292,0.00038356,120]
[340868996,1729963855471,-500.0,0.00038356,120]
[340868997,1729963855483,-785.64,0.00038356,120]
[340868998,1729963855492,-543.4271755,0.00038356,120]
[340868999,1729963855503,-500.0,0.00038356,120]
[340869000,1729963855515,-500.0,0.00038356,120]
[340869001,1729963855526,-500.0,0.00038356,120]
[340869002,1729963855536,-500.0,0.00038356,120]
[340869003,1729963855547,-500.0,0.00038356,120]
[340869004,1729963855558,-500.0,0.00038356,120]
[340869005,1729963855568,-500.0,0.00038356,120]
[340869006,1729963855579,-1263.31,0.00038356,120]
[340869007,1729963855591,-500.0,0.00038356,120]
[340869008,1729963855601,-500.0,0.00038356,120]
[340869009,1729963855611,-500.0,0.00038356,120]
[340869010,1729963855620,-500.0,0.00038356,120]
[340869011,1729963855629,-500.0,0.00038356,120]
[340869012,1729963855638,-156.66263363,0.00038356,120]
[340869013,1729963855648,-1371.66,0.00038356,120]
[340869014,1729963855657,-500.0,0.00038356,120]
[340869015,1729963855667,-500.0,0.00038356,120]
[340869016,1729963855678,-646.69958429,0.00038356,120]
[340869017,1729963855687,-1616.85,0.00038356,120]
[340869018,1729963855697,-500.0,0.00038356,120]
[340869019,1729963855706,-379.78110515,0.00038356,120]
[340869020,1729963855715,-629.04130451,0.00038356,120]
[340869021,1729963855725,-547.32323209,0.00038356,120]
[340869022,1729963855734,-500.0,0.00038356,120]
[340869023,1729963855743,-807.45,0.00038356,120]
[340869024,1729963855752,-500.0,0.00038356,120]
[340869025,1729963855762,-500.47543177,0.00038356,120]
[340869026,1729963855771,-500.0,0.00038356,120]
[340869027,1729963855780,-500.0,0.00038356,120]
[340869028,1729963855790,-500.0,0.00038356,120]
[340869029,1729963855800,-500.0,0.00038356,120]
[340869030,1729963855810,-500.0,0.00038356,120]
[340869031,1729963855820,-184.92990615,0.00038356,120]
[340869041,1729964208271,1492.39297728,0.00035187,120]
[340869043,1729964226197,182.432114,0.00013973,2]
[340869053,1729964753196,167.861102,0.00013973,2]
[340869731,1729965038430,-1212.4364456,0.00032947,3]
[340869733,1729965038440,-683.829812,0.00033192,2]
[340869735,1729965038449,-171.22649,0.00033376,2]
[340869737,1729965038459,-171.22649,0.00033666,2]
[340869740,1729965038471,-171.22649,0.00033955,2]
[340869742,1729965038483,-151.6291068,0.0003405,7]
[340869744,1729965038494,-171.22649,0.00034245,2]
[340869746,1729965038506,-112.0823602,0.00034535,2]
[340869943,1729965040443,-154.25226728,0.00034466,2]
[340869945,1729965040454,-59.1441298,0.00034535,2]
[340869947,1729965040463,-400.0,0.00034566,2]
[340869949,1729965040476,-300.0,0.00034566,2]
[340869951,1729965040486,-271.0,0.00034567,2]
[340869953,1729965040495,-24900.0,0.00034567,2]
[340869955,1729965040504,-263.934112,0.00034588,120]
[340869957,1729965040514,-171.22649,0.00034825,2]
[340869959,1729965040524,-1333.68009016,0.00034924,7]
[340869961,1729965040534,-409.66500348,0.00034924,7]
[340869963,1729965040543,-500.0,0.00034989,2]
[340869965,1729965040554,-171.22649,0.00035115,2]
[340869968,1729965040564,-765.931265,0.00035124,2]
[340869970,1729965040573,-200.0,0.00035267,14]
[340869972,1729965040583,-3316.35065133,0.00035387,2]
[340869974,1729965040599,-500.0,0.00035616,60]
[340869977,1729965040610,-765.931265,0.00035809,2]
[340869979,1729965040622,-226.0,0.00036,35]
[340869981,1729965040634,-183.50754533,0.00036394,2]
[340869983,1729965040646,-765.931265,0.00036494,2]
[340869985,1729965040656,-500.0,0.00036712,60]
[340869987,1729965040665,-3316.35065131,0.00036889,2]
[340869989,1729965040675,-1333.68009016,0.00036901,7]
[340869991,1729965040686,-500.0,0.00037729,2]
[340869993,1729965040696,-500.0,0.00037808,60]
[340869995,1729965040705,-151.07,0.0003817,2]
[340869997,1729965040716,-151.162,0.0003817,120]
[340870000,1729965040727,-209.80970971,0.00038246,17]
[340870002,1729965040736,-211.0,0.00038316,120]
[340870004,1729965040746,-20833.8156731,0.00038326,5]
[340870006,1729965040756,-4816.9875313,0.00038326,5]
[340870008,1729965040766,-211.0,0.00038326,120]
[340870010,1729965040776,-264.57,0.00038326,10]
[340870012,1729965040785,-220.48,0.00038326,10]
[340870014,1729965040795,-183.73,0.00038326,10]
[340870016,1729965040804,-500.0,0.00038335,15]
[340870018,1729965040814,-500.0,0.00038335,15]
[340870020,1729965040823,-482.34147499,0.00038335,15]
[340870022,1729965040833,-500.0,0.00038335,15]
[340870024,1729965040842,-500.0,0.00038335,15]
[340870026,1729965040852,-403.84516724,0.00038335,15]
[340870028,1729965040862,-1480.79,0.00038335,120]
[340870030,1729965040872,-166670.525384,0.00038336,5]
[340870032,1729965040881,-38535.9002504,0.00038336,5]
[340870034,1729965040893,-211.0,0.00038336,120]
[340870036,1729965040902,-275.79761264,0.00038345,15]
[340870038,1729965040912,-212.37940801,0.00038345,15]
[340870040,1729965040922,-41667.6313461,0.00038346,5]
[340870042,1729965040931,-52986.8628443,0.00038346,5]
[340870044,1729965040941,-227.65758822,0.00038356,120]
[340870046,1729965040951,-500.0,0.00038356,120]
[340870048,1729965040961,-500.0,0.00038356,120]
[340870050,1729965040970,-503.85582668,0.00038356,120]
[340870052,1729965040980,-500.0,0.00038356,120]
[340870054,1729965040990,-500.0,0.00038356,120]
[340870056,1729965040999,-500.0,0.00038356,120]
[340870059,1729965041010,-500.79422618,0.00038356,120]
[340870061,1729965041019,-500.0,0.00038356,120]
[340870063,1729965041029,-532.1807069,0.00038356,120]
[340870065,1729965041039,-513.45722433,0.00038356,120]
[340870067,1729965041048,-500.0,0.00038356,120]
[340870069,1729965041058,-641.09478952,0.00038356,120]
[340870071,1729965041068,-500.0,0.00038356,120]
[340870073,1729965041078,-500.0,0.00038356,120]
[340870075,1729965041088,-501.75966063,0.00038356,120]
[340870077,1729965041098,-500.0,0.00038356,120]
[340870079,1729965041107,-500.0,0.00038356,120]
[340870082,1729965041118,-500.0,0.00038356,120]
[340870084,1729965041128,-500.0,0.00038356,120]
[340870086,1729965041138,-500.0,0.00038356,120]
[340870088,1729965041147,-500.0,0.00038356,120]
[340870090,1729965041157,-501.08,0.00038356,120]
[340870092,1729965041167,-500.0,0.00038356,120]
[340870094,1729965041177,-500.0,0.00038356,120]
[340870096,1729965041187,-500.0,0.00038356,30]
[340870098,1729965041196,-500.0,0.00038356,120]
[340870100,1729965041205,-500.0,0.00038356,120]
[340870102,1729965041214,-615.36,0.00038356,120]
[340870104,1729965041227,-504.74359804,0.00038356,120]
[340870106,1729965041237,-500.0,0.00038356,120]
[340870108,1729965041246,-500.0,0.00038356,120]
[340870110,1729965041256,-500.0,0.00038356,120]
[340870112,1729965041265,-500.0,0.00038356,120]
[340870114,1729965041275,-500.0,0.00038356,120]
[340870115,1729965041284,-500.0,0.00038356,120]
[340870117,1729965041294,-500.0,0.00038356,120]
[340870120,1729965041304,-500.0,0.00038356,120]
[340870122,1729965041314,-244.12115038,0.00038356,120]
[340870124,1729965041323,-500.0,0.00038356,120]
[340870126,1729965041334,-500.0,0.00038356,120]
[340870128,1729965041343,-500.0,0.00038356,120]
[340870129,1729965041353,-500.0,0.00038356,120]
[340870130,1729965041364,-516.90094486,0.00038356,120]
[340870131,1729965041374,-500.0,0.00038356,120]
[340870132,1729965041384,-500.0,0.00038356,120]
[340870133,1729965041393,-500.0,0.00038356,120]
[340870134,1729965041403,-600.51628525,0.00038356,120]
[340870135,1729965041413,-500.0,0.00038356,120]
[340870137,1729965041422,-710.05,0.00038356,120]
[340870138,1729965041431,-500.0,0.00038356,120]
[340870140,1729965041442,-525.80945915,0.00038356,120]
[340870142,1729965041452,-749.56,0.00038356,120]
[340870144,1729965041461,-500.0,0.00038356,120]
[340870146,1729965041471,-520.45289377,0.00038356,120]
[340870147,1729965041481,-500.0,0.00038356,120]
[340870149,1729965041491,-500.0,0.00038356,120]
[340870150,1729965041500,-648.57,0.00038356,120]
[340870151,1729965041510,-500.0,0.00038356,120]
[340870152,1729965041519,-1010.41,0.00038356,120]
[340870153,1729965041528,-500.0,0.00038356,120]
[340870154,1729965041538,-500.0,0.00038356,120]
[340870155,1729965041547,-672.01,0.00038356,120]
[340870156,1729965041557,-500.0,0.00038356,120]
[340870157,1729965041566,-500.0,0.00038356,120]
[340870159,1729965041576,-500.0,0.00038356,120]
[340870161,1729965041586,-500.0,0.00038356,120]
[340870163,1729965041595,-500.0,0.00038356,120]
[340870165,1729965041605,-500.0,0.00038356,120]
[340870167,1729965041614,-500.0,0.00038356,120]
[340870169,1729965041624,-500.0,0.00038356,120]
[340870170,1729965041633,-538.94247471,0.00038356,120]
[340870172,1729965041642,-500.0,0.00038356,120]
[340870174,1729965041651,-500.0,0.00038356,120]
[340870176,1729965041661,-500.0,0.00038356,120]
[340870178,1729965041671,-618.3,0.00038356,120]
[340870179,1729965041680,-500.0,0.00038356,120]
[340870181,1729965041689,-504.41866037,0.00038356,120]
[340870183,1729965041698,-1422.26,0.00038356,7]
[340870185,1729965041707,-500.0,0.00038356,120]
[340870187,1729965041717,-504.41361236,0.00038356,120]
[340870189,1729965041726,-500.0,0.00038356,120]
[340870190,1729965041735,-511.46394833,0.00038356,120]
[340870191,1729965041744,-303.73589396,0.00038356,120]
[340870192,1729965041756,-994.55,0.00038356,120]
[340870193,1729965041767,-204.20503399,0.00038356,120]
[340870194,1729965041776,-500.0,0.00038356,120]
[340870195,1729965041786,-639.63,0.00038356,120]
[340870196,1729965041796,-414.25709853,0.00038356,120]
[340870197,1729965041806,-500.0,0.00038356,120]
[340870198,1729965041815,-521.75638779,0.00038356,120]
[340870199,1729965041825,-500.0,0.00038356,120]
[340870200,1729965041834,-500.0,0.00038356,120]
[340870201,1729965041844,-829.95,0.00038356,120]
[340870202,1729965041854,-500.0,0.00038356,10]
[340870203,1729965041863,-500.0,0.00038356,120]
[340870204,1729965041873,-646.06,0.00038356,120]
[340870205,1729965041882,-500.0,0.00038356,120]
[340870206,1729965041892,-749.97,0.00038356,120]
[340870207,1729965041901,-500.0,0.00038356,120]
[340870208,1729965041911,-500.0,0.00038356,5]
[340870209,1729965041920,-500.0,0.00038356,120]
[340870210,1729965041930,-500.0,0.00038356,120]
[340870211,1729965041939,-903.85,0.00038356,120]
[340870212,1729965041949,-502.01288513,0.00038356,120]
[340870213,1729965041958,-500.0,0.00038356,120]
[340870214,1729965041968,-500.0,0.00038356,120]
[340870215,1729965041978,-741.25,0.00038356,120]
[340870216,1729965041988,-500.0,0.00038356,120]
[340870217,1729965041998,-500.0,0.00038356,120]
[340870218,1729965042007,-500.0,0.00038356,120]
[340870219,1729965042017,-710.06,0.00038356,120]
[340870220,1729965042027,-500.0,0.00038356,10]
[340870221,1729965042039,-501.14676775,0.00038356,120]
[340870222,1729965042049,-500.0,0.00038356,120]
[340870223,1729965042061,-500.70006583,0.00038356,120]
[340870224,1729965042071,-518.69662927,0.00038356,120]
[340870225,1729965042081,-500.0,0.00038356,120]
[340870226,1729965042091,-500.0,0.00038356,120]
[340870227,1729965042100,-500.0,0.00038356,120]
[340870228,1729965042110,-500.0,0.00038356,120]
[340870229,1729965042119,-506.13387349,0.00038356,120]
[340870230,1729965042130,-500.0,0.00038356,120]
[340870231,1729965042140,-500.0,0.00038356,120]
[340870232,1729965042150,-500.0,0.00038356,120]
[340870233,1729965042160,-519.24888867,0.00038356,120]
[340870234,1729965042170,-500.0,0.00038356,120]
[340870235,1729965042179,-500.0,0.00038356,120]
[340870236,1729965042188,-502.62613363,0.00038356,120]
[340870237,1729965042198,-500.0,0.00038356,120]
[340870238,1729965042210,-516.15778642,0.00038356,120]
[340870239,1729965042220,-500.0,0.00038356,120]
[340870240,1729965042232,-500.0,0.00038356,120]
[340870241,1729965042243,-520.25777934,0.00038356,120]
[340870242,1729965042254,-500.0,0.00038356,120]
[340870243,1729965042265,-500.0,0.00038356,120]
[340870244,1729965042276,-500.0,0.00038356,120]
[340870245,1729965042288,-500.0,0.00038356,120]
[340870246,1729965042299,-500.0,0.00038356,2]
[340870247,1729965042311,-500.0,0.00038356,120]
[340870248,1729965042320,-500.0,0.00038356,120]
[340870249,1729965042330,-562.59,0.00038356,120]
[340870250,1729965042339,-501.47804813,0.00038356,120]
[340870251,1729965042350,-500.0,0.00038356,7]
[340870252,1729965042359,-500.0,0.00038356,120]
[340870253,1729965042369,-500.0,0.00038356,120]
[340870254,1729965042378,-500.0,0.00038356,120]
[340870255,1729965042387,-1000.0,0.00038356,120]
[340870256,1729965042397,-500.0,0.00038356,120]
[340870257,1729965042406,-535.12,0.00038356,120]
[340870258,1729965042415,-500.0,0.00038356,120]
[340870259,1729965042424,-1523.54,0.00038356,120]
[340870260,1729965042434,-624.71,0.00038356,120]
[340870261,1729965042444,-500.0,0.00038356,120]
[340870262,1729965042458,-572.55939066,0.00038356,120]
[340870263,1729965042468,-500.0,0.00038356,120]
[340870264,1729965042477,-500.0,0.00038356,120]
[340870265,1729965042486,-311.92220111,0.00038356,120]
[340870266,1729965042496,-500.0,0.00038356,120]
[340870267,1729965042505,-500.0,0.00038356,120]
[340870268,1729965042515,-1126.32,0.00038356,120]
[340870269,1729965042524,-500.0,0.00038356,120]
[340870270,1729965042534,-500.0,0.00038356,120]
[340870271,1729965042543,-825.86,0.00038356,120]
[340870272,1729965042553,-500.0,0.00038356,120]
[340870273,1729965042562,-1247.51,0.00038356,120]
[340870274,1729965042571,-500.0,0.00038356,120]
[340870275,1729965042580,-501.54352259,0.00038356,120]
[340870276,1729965042590,-500.0,0.00038356,120]
[340870277,1729965042599,-500.0,0.00038356,120]
[340870278,1729965042609,-500.0,0.00038356,120]
[340870279,1729965042619,-500.0,0.00038356,120]
[340870280,1729965042629,-500.0,0.00038356,120]
[340870281,1729965042639,-500.0,0.00038356,120]
[340870282,1729965042653,-500.0,0.00038356,120]
[340870283,1729965042664,-500.0,0.00038356,120]
[340870284,1729965042675,-500.0,0.00038356,120]
[340870285,1729965042684,-500.0,0.00038356,120]
[340870286,1729965042696,-500.0,0.00038356,120]
[340870287,1729965042707,-500.0,0.00038356,120]
[340870288,1729965042718,-568.45,0.00038356,120]
[340870289,1729965042728,-500.0,0.00038356,120]
[340870290,1729965042738,-1000.0,0.00038356,120]
[340870291,1729965042748,-500.0,0.00038356,120]
[340870292,1729965042758,-500.0,0.00038356,120]
[340870293,1729965042768,-500.0,0.00038356,120]
[340870295,1729965042778,-602.04112203,0.00038356,120]
[340870296,1729965042788,-500.0,0.00038356,120]
[340870297,1729965042797,-500.0,0.00038356,120]
[340870298,1729965042806,-510.38838642,0.00038356,120]
[340870299,1729965042816,-1014.96,0.00038356,120]
[340870300,1729965042825,-500.0,0.00038356,120]
[340870301,1729965042834,-500.0,0.00038356,120]
[340870302,1729965042844,-500.0,0.00038356,120]
[340870304,1729965042853,-500.0,0.00038356,120]
[340870305,1729965042862,-500.0,0.00038356,120]
[340870307,1729965042871,-500.0,0.00038356,120]
[340870309,1729965042881,-500.0,0.00038356,120]
[340870311,1729965042890,-500.0,0.00038356,120]
[340870313,1729965042900,-500.0,0.00038356,120]
[340870315,1729965042910,-210.95537108,0.00038356,120]
[340870316,1729965042920,-500.0,0.00038356,120]
[340870317,1729965042929,-500.0,0.00038356,120]
[340870319,1729965042939,-500.0,0.00038356,120]
[340870322,1729965042949,-500.0,0.00038356,120]
[340870324,1729965042959,-500.0,0.00038356,120]
[340870326,1729965042969,-2062.67,0.00038356,120]
[340870329,1729965042979,-500.0,0.00038356,120]
[340870331,1729965042988,-500.0,0.00038356,120]
[340870332,1729965042998,-519.71244526,0.00038356,120]
[340870333,1729965043007,-502.48504407,0.00038356,120]
[340870334,1729965043017,-500.0,0.00038356,120]
[340870335,1729965043027,-500.0,0.00038356,120]
[340870336,1729965043038,-500.0,0.00038356,120]
[340870337,1729965043048,-1407.97,0.00038356,120]
[340870338,1729965043058,-500.0,0.00038356,120]
[340870339,1729965043068,-500.0,0.00038356,120]
[340870340,1729965043078,-500.0,0.00038356,120]
[340870341,1729965043089,-401.53804156,0.00038356,120]
[340870342,1729965043098,-500.0,0.00038356,120]
[340870343,1729965043108,-500.0,0.00038356,120]
[340870344,1729965043117,-500.0,0.00038356,120]
[340870345,1729965043127,-1258.65,0.00038356,120]
[340870347,1729965043139,-500.0,0.00038356,120]
[340870350,1729965043150,-838.34,0.00038356,120]
[340870352,1729965043161,-500.0,0.00038356,120]
[340870353,1729965043172,-261.58606957,0.00038356,120]
[340870363,1729965043581,-238.41393043,0.00038356,120]
[340870364,1729965043591,-256.70809227,0.00038356,120]
[340870365,1729965043601,-313.75857209,0.00038356,120]
[340870366,1729965043616,-186.24142791,0.00038356,120]
[340870367,1729965043626,-604.35,0.00038356,120]
[340870368,1729965043636,-354.37355409,0.00038356,120]
[340870388,1729965048806,-154.25226728,0.00034488,2]
[340870389,1729965048818,-153.11,0.00038326,10]
[340870390,1729965048828,-145.62644591,0.00038356,120]
[340870391,1729965048839,-691.53,0.00038356,120]
[340870392,1729965048850,-500.0,0.00038356,120]
[340870393,1729965048860,-839.79891388,0.00038356,5]
[340870394,1729965048869,-500.0,0.00038356,120]
[340870395,1729965048881,-500.0,0.00038356,120]
[340870396,1729965048892,-500.0,0.00038356,120]
[340870397,1729965048902,-500.0,0.00038356,120]
[340870398,1729965048912,-500.0,0.00038356,120]
[340870399,1729965048921,-500.0,0.00038356,120]
[340870400,1729965048931,-582.90248241,0.00038356,120]